fUST/lending_fUST_20241130
["ID","MTS","AMOUNT","RATE_DAILY","PERIOD"]
[343855055,1732978252498,-500.0,0.00025205,3]
[343855057,1732978252507,-500.0,0.00025205,3]
[343855059,1732978252516,-500.0,0.00025205,3]
[343855061,1732978252525,-500.0,0.00025205,3]
[343855063,1732978252535,-500.0,0.00025205,3]
[343855065,1732978252545,-556.71,0.00025205,3]
[343855067,1732978252554,-500.0,0.00025205,3]
[343855069,1732978252563,-500.0,0.00025205,3]
[343855071,1732978252573,-204.299239,0.00025205,7]
[343855073,1732978252582,-204.299239,0.00025205,7]
[343855075,1732978252592,-204.299239,0.00025205,7]
[343855077,1732978252602,-204.299247,0.00025205,7]
[343855079,1732978252611,-711.92,0.00025205,3]
[343855081,1732978252621,-500.0,0.00025205,3]
[343855083,1732978252632,-500.0,0.00025205,3]
[343855085,1732978252641,-500.0,0.00025205,3]
[343855087,1732978252650,-500.0,0.00025205,3]
[343855089,1732978252659,-500.0,0.00025205,3]
[343855091,1732978252669,-500.0,0.00025205,3]
[343855093,1732978252678,-500.0,0.00025205,3]
[343855095,1732978252687,-200.0,0.00025205,3]
[343855097,1732978252697,-330.62835654,0.00025205,3]
[343855099,1732978252706,-512.20858861,0.00025205,3]
[343855101,1732978252715,-508.93733284,0.00025205,3]
[343855103,1732978252724,-500.0,0.00025205,3]
[343855105,1732978252734,-755.26,0.00025205,3]
[343855107,1732978252743,-500.0,0.00025205,3]
[343855109,1732978252753,-500.0,0.00025205,3]
[343855111,1732978252763,-500.0,0.00025205,3]
[343855113,1732978252773,-500.0,0.00025205,3]
[343855115,1732978252783,-500.0,0.00025205,3]
[343855117,1732978252792,-500.0,0.00025205,3]
[343855119,1732978252801,-500.0,0.00025205,3]
[343855121,1732978252811,-230.5169804,0.00025205,3]
[343855123,1732978252820,-574.59320516,0.00025205,3]
[343855125,1732978252829,-500.0,0.00025205,3]
[343855127,1732978252839,-500.0,0.00025205,3]
[343855129,1732978252848,-500.0,0.00025205,3]
[343855131,1732978252858,-500.0,0.00025205,3]
[343855133,1732978252867,-500.0,0.00025205,3]
[343855135,1732978252879,-500.0,0.00025205,3]
[343855137,1732978252889,-500.0,0.00025205,3]
[343855139,1732978252898,-711.86,0.00025205,3]
[343855141,1732978252907,-500.0,0.00025205,3]
[343855143,1732978252917,-500.0,0.00025205,3]
[343855145,1732978252926,-631.82190903,0.00025205,3]
[343855147,1732978252935,-500.0,0.00025205,3]
[343855149,1732978252945,-500.0,0.00025205,3]
[343855151,1732978252954,-500.0,0.00025205,3]
[343855152,1732978252964,-500.0,0.00025205,3]
[343855154,1732978252973,-500.0,0.00025205,3]
[343855156,1732978252983,-500.0,0.00025205,3]
[343855158,1732978252992,-500.0,0.00025205,3]
[343855160,1732978253002,-502.65638944,0.00025205,3]
[343855162,1732978253011,-500.0,0.00025205,3]
[343855165,1732978253021,-500.0,0.00025205,3]
[343855166,1732978253030,-500.0,0.00025205,3]
[343855168,1732978253040,-500.0,0.00025205,3]
[343855170,1732978253050,-874.23,0.00025205,3]
[343855172,1732978253061,-219.79032384,0.00025205,3]
[343855174,1732978253070,-195.55897,0.00025205,7]
[343855176,1732978253079,-500.0,0.00025205,3]
[343855178,1732978253088,-500.0,0.00025205,3]
[343855180,1732978253098,-870.24,0.00025205,3]
[343855182,1732978253107,-500.0,0.00025205,3]
[343855184,1732978253116,-795.2,0.00025205,3]
[343855186,1732978253136,-500.0,0.00025205,3]
[343855188,1732978253145,-3086.24,0.00025205,3]
[343855190,1732978253155,-500.0,0.00025205,3]
[343855192,1732978253164,-495.65391068,0.00025205,3]
[343855194,1732978253173,-500.0,0.00025205,3]
[343855196,1732978253182,-500.0,0.00025205,3]
[343855198,1732978253192,-360.96472855,0.00025205,3]
[343855200,1732978253201,-699.85,0.00025205,3]
[343855202,1732978253211,-500.0,0.00025205,3]
[343855204,1732978253221,-1136.5,0.00025205,3]
[343855206,1732978253229,-367.11887835,0.00025205,3]
[343855208,1732978253239,-500.0,0.00025205,3]
[343855210,1732978253248,-500.0,0.00025205,3]
[343855212,1732978253257,-500.0,0.00025205,3]
[343855214,1732978253267,-884.14,0.00025205,3]
[343855216,1732978253276,-500.0,0.00025205,3]
[343855218,1732978253286,-500.0,0.00025205,3]
[343855220,1732978253295,-500.0,0.00025205,3]
[343855222,1732978253304,-343.02886753,0.00025205,3]
[343855224,1732978253313,-500.0,0.00025205,3]
[343855226,1732978253323,-500.0,0.00025205,3]
[343855228,1732978253333,-500.0,0.00025205,3]
[343855230,1732978253342,-500.0,0.00025205,3]
[343855232,1732978253353,-534.25,0.00025205,3]
[343855234,1732978253362,-500.0,0.00025205,3]
[343855236,1732978253372,-500.0,0.00025205,3]
[343855238,1732978253382,-500.0,0.00025205,3]
[343855240,1732978253391,-152.70773377,0.00025205,3]
[343855242,1732978253401,-500.0,0.00025205,3]
[343855244,1732978253410,-500.0,0.00025205,3]
[343855246,1732978253419,-612.71,0.00025205,3]
[343855248,1732978253428,-500.0,0.00025205,3]
[343855250,1732978253437,-500.0,0.00025205,3]
[343855252,1732978253446,-500.0,0.00025205,3]
[343855254,1732978253455,-500.0,0.00025205,3]
[343855256,1732978253464,-500.0,0.00025205,3]
[343855258,1732978253473,-819.07,0.00025205,3]
[343855260,1732978253482,-500.0,0.00025205,3]
[343855262,1732978253491,-500.0,0.00025205,3]
[343855264,1732978253500,-500.0,0.00025205,3]
[343855266,1732978253510,-500.0,0.00025205,3]
[343855268,1732978253519,-642.87,0.00025205,3]
[343855270,1732978253528,-295.06722558,0.00025205,3]
[343855272,1732978253537,-959.64,0.00025205,3]
[343855274,1732978253547,-500.0,0.00025205,3]
[343855276,1732978253556,-500.0,0.00025205,3]
[343855278,1732978253565,-500.0,0.00025205,3]
[343855280,1732978253574,-500.0,0.00025205,3]
[343855282,1732978253584,-500.0,0.00025205,3]
[343855284,1732978253593,-641.83588653,0.00025205,3]
[343855286,1732978253603,-500.0,0.00025205,3]
[343855296,1732978253691,-500.0,0.00025205,3]
[343855298,1732978253701,-508.99584045,0.00025205,3]
[343855300,1732978253711,-500.0,0.00025205,3]
[343855302,1732978253721,-500.0,0.00025205,3]
[343855304,1732978253731,-500.0,0.00025205,3]
[343855306,1732978253740,-3373.93,0.00025205,3]
[343855308,1732978253750,-512.49,0.00025205,3]
[343855310,1732978253759,-500.0,0.00025205,3]
[343855312,1732978253768,-500.0,0.00025205,3]
[343855314,1732978253777,-1477.13,0.00025205,3]
[343855316,1732978253786,-500.0,0.00025205,3]
[343855318,1732978253796,-500.0,0.00025205,3]
[343855320,1732978253806,-1690.79,0.00025205,3]
[343855322,1732978253816,-500.0,0.00025205,3]
[343855324,1732978253825,-500.0,0.00025205,3]
[343855326,1732978253834,-500.0,0.00025205,3]
[343855328,1732978253843,-500.0,0.00025205,3]
[343855330,1732978253853,-500.0,0.00025205,3]
[343855332,1732978253862,-500.0,0.00025205,3]
[343855334,1732978253872,-562.51,0.00025205,3]
[343855336,1732978253883,-500.0,0.00025205,3]
[343855338,1732978253892,-500.0,0.00025205,3]
[343855340,1732978253901,-500.0,0.00025205,3]
[343855342,1732978253911,-435.5501712,0.00025205,3]
[343855344,1732978253920,-500.0,0.00025205,3]
[343855346,1732978253930,-500.0,0.00025205,3]
[343855348,1732978253939,-621.8,0.00025205,3]
[343855350,1732978253948,-500.0,0.00025205,3]
[343855352,1732978253957,-843.42,0.00025205,3]
[343855354,1732978253967,-500.0,0.00025205,3]
[343855356,1732978253976,-653.03,0.00025205,3]
[343855358,1732978253985,-807.02,0.00025205,3]
[343855360,1732978253994,-500.0,0.00025205,3]
[343855362,1732978254003,-500.0,0.00025205,3]
[343855364,1732978254012,-287.70828314,0.00025205,3]
[343855366,1732978254021,-3841.58,0.00025205,3]
[343855368,1732978254031,-500.0,0.00025205,3]
[343855370,1732978254040,-500.0,0.00025205,3]
[343855372,1732978254051,-500.0,0.00025205,3]
[343855374,1732978254062,-349.22427104,0.00025205,3]
[343855376,1732978254071,-500.0,0.00025205,3]
[343855378,1732978254080,-541.03,0.00025205,3]
[343855380,1732978254090,-500.0,0.00025205,3]
[343855382,1732978254099,-500.0,0.00025205,3]
[343855384,1732978254109,-500.0,0.00025205,3]
[343855386,1732978254118,-643.11110704,0.00025205,3]
[343855388,1732978254130,-500.0,0.00025205,3]
[343855390,1732978254139,-580.37,0.00025205,3]
[343855392,1732978254148,-13125.9,0.00025205,3]
[343855394,1732978254157,-500.0,0.00025205,3]
[343855396,1732978254166,-500.0,0.00025205,3]
[343855398,1732978254175,-500.0,0.00025205,3]
[343855400,1732978254185,-8701.11,0.00025205,3]
[343855402,1732978254194,-500.0,0.00025205,3]
[343855404,1732978254203,-500.0,0.00025205,3]
[343855406,1732978254213,-2444.37,0.00025205,3]
[343855408,1732978254222,-500.0,0.00025205,3]
[343855410,1732978254231,-500.0,0.00025205,3]
[343855412,1732978254240,-647.65,0.00025205,3]
[343855414,1732978254251,-500.0,0.00025205,3]
[343855416,1732978254260,-587.99,0.00025205,3]
[343855418,1732978254269,-500.0,0.00025205,3]
[343855420,1732978254278,-500.0,0.00025205,3]
[343855422,1732978254287,-500.0,0.00025205,3]
[343855424,1732978254296,-500.0,0.00025205,3]
[343855426,1732978254305,-2719.67,0.00025205,3]
[343855428,1732978254314,-500.0,0.00025205,3]
[343855430,1732978254324,-2735.5,0.00025205,2]
[343855432,1732978254333,-500.0,0.00025205,3]
[343855434,1732978254342,-500.0,0.00025205,3]
[343855436,1732978254351,-500.0,0.00025205,3]
[343855437,1732978254361,-596.5,0.00025205,3]
[343855439,1732978254369,-500.0,0.00025205,3]
[343855441,1732978254380,-500.0,0.00025205,3]
[343855443,1732978254388,-500.0,0.00025205,3]
[343855445,1732978254397,-866.85,0.00025205,3]
[343855447,1732978254406,-384.00973967,0.00025205,3]
[343855449,1732978254417,-500.0,0.00025205,3]
[343855451,1732978254427,-500.0,0.00025205,3]
[343855453,1732978254436,-500.0,0.00025205,3]
[343855455,1732978254445,-500.0,0.00025205,3]
[343855457,1732978254454,-3630.19,0.00025205,3]
[343855459,1732978254463,-500.0,0.00025205,3]
[343855461,1732978254473,-363.39750771,0.00025205,3]
[343855463,1732978254482,-760.16,0.00025205,3]
[343855465,1732978254491,-1479.53,0.00025205,3]
[343855467,1732978254500,-500.0,0.00025205,3]
[343855469,1732978254510,-502.02,0.00025205,3]
[343855471,1732978254519,-775.18,0.00025205,3]
[343855473,1732978254528,-500.0,0.00025205,3]
[343855474,1732978254538,-500.0,0.00025205,3]
[343855475,1732978254547,-500.0,0.00025205,3]
[343855476,1732978254556,-506.63215561,0.00025221,2]
[343855477,1732978254565,-1000.0,0.00025221,2]
[343855478,1732978254574,-1000.0,0.00025221,2]
[343855479,1732978254584,-1000.0,0.00025221,2]
[343855480,1732978254594,-157.42182974,0.00025221,2]
[343855481,1732978254603,-164.212992,0.00025305,2]
[343855482,1732978254611,-1882.38365506,0.00025398,2]
[343855483,1732978254621,-2934.0,0.00025431,2]
[343855485,1732978254632,-900.0,0.00025469,3]
[343855486,1732978254641,-500.0,0.00025479,7]
[343855488,1732978254650,-500.0,0.00025479,7]
[343855491,1732978254659,-150.12,0.00025479,7]
[343855492,1732978254669,-500.0,0.00025479,7]
[343855495,1732978254678,-668.74671454,0.00025479,7]
[343855496,1732978254687,-500.0,0.00025479,7]
[343855498,1732978254696,-150.12,0.00025479,7]
[343855500,1732978254705,-500.0,0.00025479,3]
[343855502,1732978254714,-508.73506587,0.00025479,3]
[343855504,1732978254723,-571.50507737,0.00025479,3]
[343855506,1732978254733,-500.0,0.00025479,3]
[343855508,1732978254742,-343.56375509,0.00025479,3]
[343855510,1732978254751,-500.0,0.00025479,3]
[343855512,1732978254760,-556.71,0.00025479,3]
[343855514,1732978254770,-500.0,0.00025479,3]
[343855516,1732978254779,-500.0,0.00025479,3]
[343855518,1732978254789,-711.92,0.00025479,3]
[343855520,1732978254798,-500.0,0.00025479,3]
[343855522,1732978254807,-500.0,0.00025479,3]
[343855524,1732978254817,-500.0,0.00025479,3]
[343855526,1732978254826,-321.2550456,0.00025479,3]
[343855528,1732978254835,-500.0,0.00025479,3]
[343855530,1732978254845,-500.0,0.00025479,3]
[343855532,1732978254854,-523.9758747,0.00025479,3]
[343855534,1732978254863,-200.0,0.00025479,3]
[343855536,1732978254873,-237.88397044,0.00025479,3]
[343855538,1732978254882,-755.26,0.00025479,3]
[343855540,1732978254891,-500.0,0.00025479,3]
[343855542,1732978254901,-500.0,0.00025479,3]
[343855544,1732978254910,-500.0,0.00025479,3]
[343855546,1732978254919,-506.79581895,0.00025479,3]
[343855548,1732978254929,-500.0,0.00025479,3]
[343855550,1732978254939,-500.0,0.00025479,3]
[343855552,1732978254948,-500.0,0.00025479,3]
[343855554,1732978254957,-176.31929312,0.00025479,3]
[343855556,1732978254966,-500.0,0.00025479,3]
[343855558,1732978254976,-500.0,0.00025479,3]
[343855560,1732978254986,-500.0,0.00025479,3]
[343855562,1732978254995,-500.0,0.00025479,3]
[343855564,1732978255004,-500.0,0.00025479,3]
[343855566,1732978255013,-711.86,0.00025479,3]
[343855568,1732978255022,-646.63542523,0.00025479,3]
[343855570,1732978255032,-500.0,0.00025479,3]
[343855572,1732978255042,-500.0,0.00025479,3]
[343855574,1732978255053,-500.0,0.00025479,3]
[343855576,1732978255062,-500.0,0.00025479,3]
[343855578,1732978255071,-151.97154095,0.00025479,3]
[343855580,1732978255080,-512.47048634,0.00025479,3]
[343855582,1732978255090,-500.0,0.00025479,3]
[343855584,1732978255100,-500.0,0.00025479,3]
[343855586,1732978255109,-640.38,0.00025479,3]
[343855588,1732978255118,-500.0,0.00025479,3]
[343855590,1732978255131,-500.0,0.00025479,3]
[343855592,1732978255141,-874.23,0.00025479,3]
[343855594,1732978255150,-500.0,0.00025479,3]
[343855596,1732978255159,-500.0,0.00025479,3]
[343855598,1732978255168,-870.24,0.00025479,3]
[343855600,1732978255178,-500.0,0.00025479,3]
[343855602,1732978255187,-795.2,0.00025479,3]
[343855605,1732978255196,-500.0,0.00025479,3]
[343855607,1732978255205,-3086.24,0.00025479,3]
[343855609,1732978255215,-500.0,0.00025479,3]
[343855611,1732978255225,-500.0,0.00025479,3]
[343855613,1732978255235,-500.0,0.00025479,3]
[343855615,1732978255244,-699.85,0.00025479,3]
[343855617,1732978255253,-219.13858816,0.00025479,3]
[343855619,1732978255262,-1136.5,0.00025479,3]
[343855621,1732978255272,-500.0,0.00025479,3]
[343855623,1732978255281,-500.0,0.00025479,3]
[343855625,1732978255290,-500.0,0.00025479,3]
[343855627,1732978255299,-884.14,0.00025479,3]
[343855629,1732978255309,-500.0,0.00025479,3]
[343855639,1732978255388,-528.84565971,0.00025479,3]
[343855642,1732978255405,-644.32432801,0.00025479,3]
[343855644,1732978255415,-500.0,0.00025479,3]
[343855645,1732978255424,-500.0,0.00025479,3]
[343855647,1732978255434,-500.0,0.00025479,3]
[343855649,1732978255443,-500.0,0.00025479,3]
[343855652,1732978255453,-534.25,0.00025479,3]
[343855654,1732978255462,-500.0,0.00025479,3]
[343855656,1732978255471,-592.22107766,0.00025479,3]
[343855658,1732978255481,-500.0,0.00025479,3]
[343855660,1732978255489,-500.0,0.00025479,3]
[343855662,1732978255497,-500.0,0.00025479,3]
[343855663,1732978255506,-612.71,0.00025479,3]
[343855665,1732978255515,-500.0,0.00025479,3]
[343855668,1732978255525,-500.0,0.00025479,3]
[343855670,1732978255534,-500.0,0.00025479,3]
[343855671,1732978255543,-500.0,0.00025479,3]
[343855674,1732978255553,-500.0,0.00025479,3]
[343855675,1732978255562,-819.07,0.00025479,3]
[343855678,1732978255571,-500.0,0.00025479,3]
[343855680,1732978255581,-500.0,0.00025479,3]
[343855682,1732978255590,-500.0,0.00025479,3]
[343855684,1732978255601,-548.77353284,0.00025479,3]
[343855686,1732978255610,-642.87,0.00025479,3]
[343855688,1732978255619,-959.64,0.00025479,3]
[343855690,1732978255629,-500.0,0.00025479,3]
[343855692,1732978255638,-500.0,0.00025479,3]
[343855694,1732978255648,-500.0,0.00025479,3]
[343855696,1732978255658,-500.0,0.00025479,3]
[343855698,1732978255667,-500.0,0.00025479,3]
[343855700,1732978255676,-500.0,0.00025479,3]
[343855702,1732978255685,-500.0,0.00025479,3]
[343855704,1732978255695,-500.0,0.00025479,3]
[343855706,1732978255704,-500.0,0.00025479,3]
[343855708,1732978255713,-500.0,0.00025479,3]
[343855710,1732978255722,-3373.93,0.00025479,3]
[343855712,1732978255732,-512.49,0.00025479,3]
[343855714,1732978255741,-500.0,0.00025479,3]
[343855716,1732978255751,-502.03829316,0.00025479,3]
[343855718,1732978255760,-1477.13,0.00025479,3]
[343855720,1732978255769,-500.0,0.00025479,3]
[343855722,1732978255779,-500.0,0.00025479,3]
[343855724,1732978255788,-1690.79,0.00025479,3]
[343855726,1732978255797,-500.0,0.00025479,3]
[343855728,1732978255806,-500.0,0.00025479,3]
[343855730,1732978255815,-500.0,0.00025479,3]
[343855732,1732978255825,-500.0,0.00025479,3]
[343855734,1732978255834,-500.0,0.00025479,3]
[343855736,1732978255843,-500.0,0.00025479,3]
[343855738,1732978255853,-562.51,0.00025479,3]
[343855740,1732978255862,-500.0,0.00025479,3]
[343855742,1732978255871,-500.0,0.00025479,3]
[343855744,1732978255883,-500.0,0.00025479,3]
[343855746,1732978255893,-500.0,0.00025479,3]
[343855748,1732978255902,-500.0,0.00025479,3]
[343855750,1732978255911,-621.8,0.00025479,3]
[343855752,1732978255921,-500.0,0.00025479,3]
[343855754,1732978255931,-843.42,0.00025479,3]
[343855756,1732978255940,-500.0,0.00025479,3]
[343855758,1732978255950,-653.03,0.00025479,3]
[343855761,1732978255961,-807.02,0.00025479,3]
[343855763,1732978255970,-500.0,0.00025479,3]
[343855765,1732978255979,-264.87,0.00025479,3]
[343855767,1732978255988,-3841.58,0.00025479,3]
[343855769,1732978255998,-500.0,0.00025479,3]
[343855771,1732978256007,-500.0,0.00025479,3]
[343855773,1732978256016,-500.0,0.00025479,3]
[343855775,1732978256026,-500.0,0.00025479,3]
[343855777,1732978256037,-541.03,0.00025479,3]
[343855779,1732978256046,-500.0,0.00025479,3]
[343855781,1732978256060,-500.0,0.00025479,3]
[343855783,1732978256069,-500.0,0.00025479,3]
[343855785,1732978256078,-584.27281459,0.00025479,3]
[343855787,1732978256087,-13125.9,0.00025479,3]
[343855789,1732978256097,-500.0,0.00025479,3]
[343855791,1732978256107,-500.0,0.00025479,3]
[343855793,1732978256116,-500.0,0.00025479,3]
[343855795,1732978256128,-8701.11,0.00025479,3]
[343855797,1732978256139,-500.0,0.00025479,3]
[343855799,1732978256148,-500.0,0.00025479,3]
[343855801,1732978256157,-2444.37,0.00025479,3]
[343855803,1732978256167,-449.77258895,0.00025479,3]
[343855805,1732978256176,-500.0,0.00025479,3]
[343855807,1732978256185,-647.65,0.00025479,3]
[343855809,1732978256194,-500.0,0.00025479,3]
[343855811,1732978256203,-587.99,0.00025479,3]
[343855813,1732978256213,-500.0,0.00025479,3]
[343855815,1732978256223,-500.0,0.00025479,3]
[343855817,1732978256232,-500.0,0.00025479,3]
[343855819,1732978256242,-500.0,0.00025479,3]
[343855821,1732978256251,-2719.67,0.00025479,3]
[343855823,1732978256260,-500.0,0.00025479,3]
[343855825,1732978256269,-2735.5,0.00025479,2]
[343855827,1732978256279,-500.0,0.00025479,3]
[343855829,1732978256288,-520.26729211,0.00025479,3]
[343855831,1732978256298,-500.0,0.00025479,3]
[343855833,1732978256307,-596.5,0.00025479,3]
[343855835,1732978256315,-500.0,0.00025479,3]
[343855837,1732978256324,-500.0,0.00025479,3]
[343855839,1732978256333,-385.71,0.00025479,3]
[343855841,1732978256342,-866.85,0.00025479,3]
[343855843,1732978256351,-500.0,0.00025479,3]
[343855845,1732978256361,-500.0,0.00025479,3]
[343855847,1732978256371,-500.0,0.00025479,3]
[343855849,1732978256382,-500.0,0.00025479,3]
[343855851,1732978256391,-3630.19,0.00025479,3]
[343855853,1732978256400,-500.0,0.00025479,3]
[343855855,1732978256409,-1479.53,0.00025479,3]
[343855857,1732978256421,-760.16,0.00025479,3]
[343855859,1732978256430,-500.0,0.00025479,3]
[343855861,1732978256439,-502.02,0.00025479,3]
[343855863,1732978256448,-775.18,0.00025479,3]
[343855865,1732978256458,-500.0,0.00025479,3]
[343855867,1732978256467,-500.0,0.00025479,3]
[343855869,1732978256477,-500.0,0.00025479,3]
[343855871,1732978256486,-195570.375436,0.000255,2]
[343855873,1732978256495,-218.0,0.0002552,15]
[343855875,1732978256505,-1000.0,0.00025521,2]
[343855877,1732978256514,-946.13968757,0.00025521,2]
[343855879,1732978256523,-500.0,0.00025753,7]
[343855881,1732978256533,-206.8026514,0.00025753,7]
[343855884,1732978256543,-500.0,0.00025753,7]
[343855886,1732978256553,-156.73467179,0.00025753,7]
[343855888,1732978256562,-500.0,0.00025753,3]
[343855890,1732978256571,-500.0,0.00025753,3]
[343855891,1732978256581,-500.0,0.00025753,3]
[343855893,1732978256590,-556.71,0.00025753,3]
[343855895,1732978256599,-500.0,0.00025753,3]
[343855898,1732978256609,-500.0,0.00025753,3]
[343855900,1732978256619,-711.92,0.00025753,3]
[343855901,1732978256631,-500.0,0.00025753,3]
[343855903,1732978256643,-500.0,0.00025753,3]
[343855905,1732978256653,-500.0,0.00025753,3]
[343855907,1732978256663,-500.67266789,0.00025753,3]
[343855909,1732978256673,-500.0,0.00025753,3]
[343855912,1732978256683,-200.0,0.00025753,3]
[343855913,1732978256692,-755.26,0.00025753,3]
[343855915,1732978256702,-500.0,0.00025753,3]
[343855918,1732978256712,-286.70049076,0.00025753,3]
[343855920,1732978256721,-500.0,0.00025753,3]
[343855922,1732978256731,-500.0,0.00025753,3]
[343855923,1732978256740,-500.0,0.00025753,3]
[343855925,1732978256749,-500.0,0.00025753,3]
[343855927,1732978256758,-500.0,0.00025753,3]
[343855929,1732978256768,-500.0,0.00025753,3]
[343855931,1732978256778,-500.0,0.00025753,3]
[343855933,1732978256787,-500.0,0.00025753,3]
[343855936,1732978256797,-500.0,0.00025753,3]
[343855937,1732978256806,-711.86,0.00025753,3]
[343855939,1732978256815,-500.0,0.00025753,3]
[343855942,1732978256824,-500.0,0.00025753,3]
[343855943,1732978256834,-500.0,0.00025753,3]
[343855946,1732978256844,-500.0,0.00025753,3]
[343855948,1732978256853,-500.0,0.00025753,3]
[343855950,1732978256863,-500.0,0.00025753,3]
[343855951,1732978256873,-500.0,0.00025753,3]
[343855954,1732978256884,-500.0,0.00025753,3]
[343855956,1732978256894,-874.23,0.00025753,3]
[343855957,1732978256904,-500.0,0.00025753,3]
[343855960,1732978256913,-870.24,0.00025753,3]
[343855969,1732978256993,-500.0,0.00025753,3]
[343855971,1732978257003,-205.09530956,0.00025753,3]
[343855973,1732978257012,-795.2,0.00025753,3]
[343855975,1732978257022,-500.0,0.00025753,3]
[343855977,1732978257031,-3086.24,0.00025753,3]
[343855979,1732978257041,-500.0,0.00025753,3]
[343855981,1732978257051,-500.0,0.00025753,3]
[343855983,1732978257063,-500.0,0.00025753,3]
[343855985,1732978257072,-699.85,0.00025753,3]
[343855987,1732978257082,-1136.5,0.00025753,3]
[343855989,1732978257091,-500.0,0.00025753,3]
[343855991,1732978257102,-486.28411944,0.00025753,3]
[343855993,1732978257111,-500.0,0.00025753,3]
[343855995,1732978257121,-884.14,0.00025753,3]
[343855997,1732978257133,-500.0,0.00025753,3]
[343855999,1732978257144,-500.0,0.00025753,3]
[343856001,1732978257153,-500.0,0.00025753,3]
[343856003,1732978257162,-500.0,0.00025753,3]
[343856005,1732978257172,-500.0,0.00025753,3]
[343856007,1732978257181,-534.25,0.00025753,3]
[343856009,1732978257191,-500.0,0.00025753,3]
[343856011,1732978257200,-500.0,0.00025753,3]
[343856013,1732978257210,-500.0,0.00025753,3]
[343856016,1732978257220,-500.0,0.00025753,3]
[343856017,1732978257229,-612.71,0.00025753,3]
[343856019,1732978257239,-500.0,0.00025753,3]
[343856022,1732978257248,-500.0,0.00025753,3]
[343856024,1732978257258,-500.0,0.00025753,3]
[343856026,1732978257267,-500.0,0.00025753,3]
[343856028,1732978257277,-500.0,0.00025753,3]
[343856030,1732978257286,-819.07,0.00025753,3]
[343856032,1732978257296,-500.0,0.00025753,3]
[343856034,1732978257305,-500.0,0.00025753,3]
[343856036,1732978257315,-500.0,0.00025753,3]
[343856038,1732978257324,-642.87,0.00025753,3]
[343856040,1732978257334,-959.64,0.00025753,3]
[343856042,1732978257344,-277.94,0.00025753,3]
[343856044,1732978257354,-500.0,0.00025753,3]
[343856046,1732978257364,-500.0,0.00025753,3]
[343856048,1732978257374,-500.0,0.00025753,3]
[343856050,1732978257386,-500.0,0.00025753,3]
[343856052,1732978257395,-500.0,0.00025753,3]
[343856054,1732978257405,-247.43133361,0.00025753,3]
[343856056,1732978257415,-500.0,0.00025753,3]
[343856058,1732978257425,-500.0,0.00025753,3]
[343856060,1732978257434,-3373.93,0.00025753,3]
[343856062,1732978257444,-512.49,0.00025753,3]
[343856064,1732978257455,-500.0,0.00025753,3]
[343856066,1732978257465,-1477.13,0.00025753,3]
[343856068,1732978257475,-500.0,0.00025753,3]